bitfinex/quotes_BTCUSD_20241223
["timestamp","ask_amount","ask_price","bid_price","bid_amount"]
[1734923841851,0.1013084,95579.0,95567.0,0.418552]
[1734923842050,0.1013084,95579.0,95567.0,0.209276]
[1734923842465,0.1013084,95579.0,95559.0,0.209294]
[1734923842466,0.001,95575.0,95559.0,0.209294]
[1734923842671,0.1013084,95574.0,95559.0,0.209294]
[1734923842925,0.00104798,95573.0,95559.0,0.209294]
[1734923843092,0.10235638,95573.0,95559.0,0.209294]
[1734923843291,0.1013084,95572.0,95546.0,0.15]
[1734923843660,0.09145638,95572.0,95559.0,0.002]
[1734923844987,0.09145638,95572.0,95558.0,0.209296]
[1734923845351,0.09145638,95572.0,95559.0,0.001]
[1734923845555,0.09145638,95572.0,95558.0,0.209296]
[1734923845961,0.09145638,95572.0,95559.0,0.003]
[1734923846162,0.09145638,95572.0,95560.0,0.209292]
[1734923846497,8.55e-05,95580.0,95561.0,0.00104641]
[1734923846700,0.1013084,95579.0,95564.0,0.209282]
[1734923846906,0.1013084,95579.0,95570.0,0.209269]
[1734923847111,8.55e-05,95580.0,95576.0,0.209256]
[1734923847248,8.55e-05,95580.0,95576.0,0.493712]
[1734923848045,8.55e-05,95580.0,95578.0,0.209253]
[1734923848240,8.55e-05,95580.0,95579.0,0.00104608]
[1734923848878,0.0050855,95580.0,95579.0,0.00104608]
[1734923849080,0.0050855,95580.0,95578.0,0.20941402]
[1734923849081,8.55e-05,95580.0,95578.0,0.00016102]
[1734923849282,0.1013084,95579.0,95578.0,0.00016102]
[1734923849507,8.55e-05,95590.0,95578.0,0.00016102]
[1734923849712,0.209183,95610.0,95578.0,0.00016102]
[1734923849713,0.20360618,95610.0,95578.0,0.00016102]
[1734923849996,0.1884075,95608.0,95588.0,0.209229]
[1734923850192,0.1013084,95607.0,95588.0,0.209229]
[1734923850815,0.0767,95639.0,95610.0,0.209181]
[1734923850982,0.209152,95624.0,95598.0,0.209209]
[1734923851186,0.209152,95624.0,95600.0,0.209205]
[1734923851405,0.209152,95624.0,95598.0,0.209209]
[1734923851406,0.209146,95627.0,95602.0,0.2092]
[1734923851746,0.209131,95634.0,95610.0,0.209181]
[1734923851919,0.209148,95626.0,95610.0,0.209181]
[1734923852197,0.209148,95626.0,95610.0,0.20934202]
[1734923852463,0.01292566,95648.0,95614.0,0.209174]
[1734923852464,0.209105,95646.0,95614.0,0.209174]
[1734923852666,0.01292566,95648.0,95615.0,0.21021666]
[1734923852667,1e-08,95619.0,95615.0,0.21021666]
[1734923852859,1e-08,95619.0,95615.0,0.23098282]
[1734923853062,1e-08,95619.0,95615.0,0.44015382]
[1734923853261,1e-08,95619.0,95617.0,0.209167]
[1734923853434,1e-08,95619.0,95618.0,0.15104563]
[1734923854487,0.22161327,95648.0,95631.0,0.209135]
[1734923854615,0.1013084,95647.0,95631.0,0.209135]
[1734923855042,0.1013084,95647.0,95619.0,0.209163]
[1734923855043,0.209106,95645.0,95619.0,0.209163]
[1734923855240,0.1013084,95644.0,95621.0,0.209159]
[1734923855442,0.1013084,95644.0,95622.0,0.00104564]
[1734923855668,0.209126,95637.0,95621.0,0.209159]
[1734923855874,0.3104344,95637.0,95621.0,0.209159]
[1734923856075,0.3104344,95637.0,95616.0,0.209168]
[1734923856249,0.209113,95642.0,95619.0,0.001]
[1734923856250,0.1013084,95636.0,95619.0,0.001]
[1734923857640,0.209128,95635.0,95613.0,0.209176]
[1734923857847,0.1013084,95634.0,95615.0,0.20917]
[1734923858059,0.418265,95633.0,95621.0,0.001]
[1734923858261,0.209121,95639.0,95621.0,0.001]
[1734923858262,0.01251127,95648.0,95621.0,0.1275]
[1734923858550,0.009,95636.0,95622.0,0.00104559]
[1734923858716,0.009,95636.0,95621.0,0.1275]
[1734923858717,0.009,95636.0,95623.0,0.0010456]
[1734923858899,0.1008584,95647.0,95623.0,0.0010456]
[1734923859103,0.01251127,95648.0,95639.0,0.209117]
[1734923859507,0.00251127,95648.0,95639.0,0.209117]
[1734923859905,0.00251127,95648.0,95626.0,0.02094664]
[1734923860107,0.00251127,95648.0,95639.0,0.209117]
[1734923860315,0.00304813,95648.0,95639.0,0.209117]
[1734923860759,0.00304813,95648.0,95630.0,0.18943965]
[1734923860760,0.00304813,95648.0,95638.0,0.18943965]
[1734923860901,0.00304813,95648.0,95641.0,0.209114]
[1734923861729,0.00304813,95648.0,95631.0,0.03546512]
[1734923861913,0.00304813,95648.0,95630.0,0.18943965]
[1734923862321,0.00304813,95648.0,95641.0,0.003]
[1734923862526,0.00304813,95648.0,95642.0,0.209113]
[1734923862726,0.00304813,95648.0,95637.0,0.209124]
[1734923862927,0.01204813,95648.0,95637.0,0.209124]
[1734923863331,0.00304813,95648.0,95638.0,0.18943965]
[1734923863529,0.00304813,95648.0,95641.0,0.003]
[1734923864169,0.209104,95646.0,95641.0,0.003]
[1734923864371,0.1013084,95645.0,95641.0,0.003]
[1734923864572,0.1070619,95645.0,95641.0,0.003]
[1734923864979,0.1070619,95645.0,95636.0,0.209124]
[1734923865249,0.1070619,95645.0,95637.0,0.001]
[1734923865459,0.1013084,95645.0,95638.0,0.209121]
[1734923865618,0.00575349,95644.0,95638.0,0.209121]
[1734923866777,0.00575349,95644.0,95638.0,0.214121]
[1734923867276,0.1013084,95645.0,95638.0,0.214121]
[1734923867454,0.1013939,95645.0,95638.0,0.214121]
[1734923867655,0.00575349,95644.0,95638.0,0.214121]
[1734923868463,0.00575349,95644.0,95638.0,0.005]
[1734923868644,0.00482774,95643.0,95636.0,0.209124]
[1734923868845,0.1013939,95645.0,95638.0,0.001]
[1734923869052,0.00482775,95644.0,95638.0,0.001]
[1734923869288,0.00482775,95644.0,95636.0,0.209124]
[1734923869482,0.00482775,95644.0,95638.0,0.001]
[1734923870035,0.00482775,95644.0,95639.0,0.209119]
[1734923870233,0.00482775,95644.0,95638.0,0.001]
[1734923870450,0.00482775,95644.0,95639.0,0.418238]
[1734923870780,8.55e-05,95645.0,95639.0,0.418238]
[1734923871177,8.55e-05,95645.0,95635.0,0.209127]
[1734923871613,8.55e-05,95645.0,95639.0,0.209119]
[1734923871814,8.55e-05,95645.0,95635.0,0.209127]
[1734923872222,8.55e-05,95645.0,95641.0,0.209114]
[1734923872428,8.55e-05,95645.0,95639.0,0.003]
[1734923872681,0.1013939,95645.0,95639.0,0.003]
[1734923873088,0.3104164,95644.0,95630.0,0.03547235]
[1734923873286,0.1013084,95644.0,95627.0,0.209145]
[1734923873507,8.55e-05,95645.0,95631.0,0.209136]
[1734923873707,8.55e-05,95645.0,95633.0,0.209132]
[1734923874092,8.55e-05,95645.0,95629.0,0.209141]
[1734923874093,0.1013084,95644.0,95629.0,0.209141]
[1734923874469,0.1013084,95644.0,95641.0,0.002]
[1734923874470,0.20911,95643.0,95641.0,0.002]
[1734923874654,0.1013084,95642.0,95628.0,0.201143]
[1734923875081,0.1013084,95642.0,95633.0,0.001]
[1734923875289,0.1013084,95642.0,95634.0,0.20913]
[1734923875484,0.1013084,95642.0,95628.0,0.201143]
[1734923875716,0.1013084,95642.0,95641.0,0.003]
[1734923875946,0.1013084,95642.0,95628.0,0.201143]
[1734923876314,0.1013084,95642.0,95633.0,0.002]
[1734923876953,0.5906,95640.0,95633.0,0.002]
[1734923877165,0.209121,95638.0,95633.0,0.002]
[1734923877335,0.1013084,95637.0,95633.0,0.002]
[1734923877534,0.1013084,95637.0,95624.0,0.209152]
[1734923877985,0.1013084,95637.0,95624.0,0.03669398]
[1734923878390,0.1013084,95637.0,95617.0,0.209165]
[1734923878595,0.1023084,95637.0,95633.0,0.005]
[1734923878802,0.209128,95635.0,95633.0,0.005]
[1734923879009,0.1013084,95634.0,95612.0,0.209178]
[1734923879183,0.209132,95633.0,95624.0,0.001]
[1734923879385,0.1013084,95632.0,95624.0,0.001]
[1734923879591,0.1013084,95632.0,95619.0,0.209163]
[1734923879812,0.1013084,95632.0,95613.0,0.209175]
[1734923880012,0.209137,95631.0,95620.0,0.01894294]
[1734923880378,0.1013084,95630.0,95621.0,0.209159]
[1734923880584,0.1013084,95630.0,95620.0,0.01894294]
[1734923881004,0.209141,95629.0,95621.0,0.01894294]
[1734923881212,0.1013084,95628.0,95621.0,0.01894294]
[1734923881647,0.209145,95627.0,95622.0,0.01894294]
[1734923881860,0.1013084,95626.0,95622.0,0.00394294]
[1734923882031,0.20915,95625.0,95622.0,0.00394294]
[1734923882171,0.1013084,95624.0,95622.0,0.00394294]
[1734923882372,0.1013084,95624.0,95611.0,0.19152539]
[1734923882572,0.1013084,95624.0,95620.0,0.209161]
[1734923882791,0.5906,95640.0,95611.0,0.15]
[1734923882792,0.5906,95640.0,95622.0,0.418312]
[1734923882996,0.3104274,95639.0,95622.0,0.209156]
[1734923883411,0.3104274,95639.0,95622.0,0.011]
[1734923884026,0.1013084,95639.0,95622.0,0.429311]
[1734923884238,0.1013084,95639.0,95622.0,0.011]
[1734923884928,0.209121,95638.0,95623.0,0.209154]
[1734923885132,0.1013084,95637.0,95622.0,0.011]
[1734923885502,0.1013084,95637.0,95622.0,0.01]
[1734923885659,0.209128,95635.0,95622.0,0.01]
[1734923885862,0.209132,95633.0,95622.0,0.01]
[1734923886066,0.209137,95631.0,95622.0,0.01]
[1734923886463,0.1013084,95630.0,95622.0,0.01]
[1734923887062,0.1013084,95630.0,95622.0,0.0515194]
[1734923887470,0.1013084,95630.0,95622.0,0.01]
[1734923888452,0.1013084,95630.0,95611.0,0.15]
[1734923888453,0.1013084,95630.0,95612.0,0.209178]
[1734923888659,0.1013084,95630.0,95476.0,1.5]
[1734923888660,0.209172,95615.0,95588.0,0.26233006]
[1734923888825,0.209187,95608.0,95588.0,0.26233006]
[1734923889048,0.209209,95598.0,95595.0,0.13339417]
[1734923889267,0.1013084,95597.0,95596.0,0.09087953]
[1734923890137,0.1,95633.0,95596.0,0.09104055]
[1734923890346,0.1013084,95621.0,95597.0,0.04904601]
[1734923890549,0.3104684,95621.0,95605.0,0.209193]
[1734923890751,0.1013084,95621.0,95606.0,0.00104584]
[1734923890953,0.1013084,95621.0,95607.0,0.209189]
[1734923891803,0.009,95608.0,95607.0,0.209189]
[1734923891996,0.1013084,95621.0,95607.0,0.209189]
[1734923892219,0.1013084,95621.0,95620.0,0.000171]
[1734923892429,0.1023084,95621.0,95620.0,0.000171]
[1734923892636,0.1013084,95621.0,95620.0,0.000171]
[1734923892839,0.3104674,95621.0,95620.0,0.000171]
[1734923893402,0.1013084,95621.0,95602.0,0.02076323]
[1734923893627,0.209172,95616.0,95600.0,0.10475847]
[1734923893831,0.1013084,95615.0,95600.0,0.10475847]
[1734923895312,0.1013084,95615.0,95601.0,0.209202]
[1734923895589,0.1013084,95615.0,95600.0,0.10475847]
[1734923895795,0.209174,95614.0,95600.0,0.10475847]
[1734923895998,0.1013084,95613.0,95600.0,0.10475847]
[1734923896207,0.209178,95612.0,95600.0,0.10475847]
[1734923896405,0.1013084,95611.0,95600.0,0.10475847]
[1734923896602,0.209183,95610.0,95601.0,0.002]
[1734923896832,0.1013084,95610.0,95600.0,0.10475847]
[1734923897247,0.1013084,95610.0,95600.0,0.10675847]
[1734923898333,0.1013084,95610.0,95600.0,0.10475847]
[1734923899364,0.002,95610.0,95601.0,0.209202]
[1734923899598,0.209165,95619.0,95601.0,0.209202]
[1734923899803,0.209167,95617.0,95601.0,0.209202]
[1734923900011,0.001,95610.0,95606.0,0.209189]
[1734923900226,0.209147,95627.0,95606.0,0.41838]
[1734923900440,0.1013084,95626.0,95606.0,0.41838]
[1734923901812,0.12614968,95630.0,95604.0,0.0826]
[1734923901813,8.55e-05,95630.0,95626.0,0.209146]
[1734923902013,8.55e-05,95630.0,95628.0,0.209143]
[1734923902241,8.55e-05,95630.0,95626.0,0.209146]
[1734923902242,0.5906,95640.0,95629.0,0.08354554]
[1734923902473,0.5906,95640.0,95630.0,0.209139]
[1734923903108,0.59113686,95640.0,95630.0,0.209139]
[1734923903312,0.59113686,95640.0,95627.0,0.209145]
[1734923903490,0.1013084,95639.0,95623.0,0.209152]
[1734923903914,0.1013084,95639.0,95616.0,0.04288297]
[1734923904121,0.1013084,95639.0,95618.0,0.09087953]
[1734923904122,0.209134,95633.0,95618.0,0.09087953]
[1734923904330,0.59113686,95640.0,95618.0,0.09087953]
[1734923904528,0.59113686,95640.0,95619.0,0.00104578]
[1734923904863,0.59313686,95640.0,95630.0,0.209137]
[1734923905063,0.59113686,95640.0,95632.0,0.209135]
[1734923905289,0.69244526,95640.0,95628.0,0.209143]
[1734923905694,0.1013084,95639.0,95628.0,0.209143]
[1734923906040,0.59122246,95640.0,95630.0,0.001]
[1734923906041,0.60022246,95640.0,95630.0,0.001]
[1734923906265,0.60022246,95640.0,95631.0,0.209137]
[1734923906435,0.60022246,95640.0,95633.0,0.209132]
[1734923906850,0.60022246,95640.0,95631.0,0.209137]
[1734923906851,0.59122246,95640.0,95631.0,0.209137]
[1734923907063,0.59122246,95640.0,95629.0,0.209141]
[1734923907233,0.1013084,95639.0,95623.0,0.209154]
[1734923907438,0.3104274,95639.0,95623.0,0.209154]
[1734923908060,0.3104274,95639.0,95620.0,0.209159]
[1734923908246,0.20913,95634.0,95621.0,0.00104566]
[1734923908441,0.1013084,95633.0,95611.0,0.20918]
[1734923908673,0.209145,95628.0,95612.0,0.00104577]
[1734923909000,0.1013084,95627.0,95623.0,0.001]
[1734923909316,0.009,95639.0,95617.0,0.18922011]
[1734923909699,0.008,95633.0,95629.0,0.39836111]
[1734923909903,0.59122246,95640.0,95629.0,0.209141]
[1734923910526,0.59122246,95640.0,95629.0,0.418282]
[1734923910720,0.59122246,95640.0,95637.0,0.209123]
[1734923910877,0.54957756,95640.0,95639.0,0.209119]
[1734923911281,0.53112756,95640.0,95639.0,0.209119]
[1734923911911,0.53112756,95640.0,95639.0,0.25242388]
[1734923912467,0.54012756,95640.0,95639.0,0.25342388]
[1734923912919,0.54012756,95640.0,95639.0,0.46786388]
[1734923913118,0.54012756,95640.0,95639.0,0.25342388]
[1734923913322,0.53112756,95640.0,95639.0,0.25242388]
[1734923913639,0.53112756,95640.0,95639.0,0.04330488]
[1734923913843,0.53112756,95640.0,95639.0,0.18895346]
[1734923914406,0.53112756,95640.0,95639.0,0.219119]
[1734923914823,0.53712756,95640.0,95639.0,0.220119]
[1734923916244,0.51244985,95640.0,95639.0,0.220119]
[1734923916503,0.20874421,95640.0,95639.0,0.4214274]
[1734923916639,0.19866421,95640.0,95639.0,0.3214274]
[1734923916841,0.19866421,95640.0,95639.0,0.5923224]
[1734923917044,0.19866421,95640.0,95639.0,0.4923224]
[1734923917290,0.19866421,95640.0,95639.0,0.3214274]
[1734923917493,0.19541421,95640.0,95639.0,0.3214274]
[1734923917903,0.19541421,95640.0,95639.0,0.220119]
[1734923918436,0.15187098,95640.0,95639.0,0.4320464]
[1734923918638,0.14657355,95640.0,95639.0,0.3214274]
[1734923919222,0.14615238,95640.0,95639.0,0.3214274]
[1734923919825,0.14615238,95640.0,95639.0,0.220119]
[1734923921901,0.15076985,95640.0,95639.0,0.220119]
[1734923924281,0.13290985,95640.0,95639.0,0.220119]
[1734923926851,0.00461747,95640.0,95639.0,0.4714274]
[1734923927062,8.55e-05,95668.0,95667.0,0.209058]
[1734923927430,0.0001865,95668.0,95667.0,0.209058]
[1734923928360,0.0001865,95668.0,95664.0,0.22950478]
[1734923928561,0.0001865,95668.0,95665.0,0.0010451]
[1734923928735,0.0001865,95668.0,95666.0,0.1013084]
[1734923928922,0.0001865,95668.0,95667.0,0.21010308]
[1734923929122,0.0001865,95668.0,95667.0,0.3103664]
[1734923929310,0.0061865,95668.0,95667.0,0.3113664]
[1734923929509,0.0061865,95668.0,95667.0,0.3103664]
[1734923929510,0.0001865,95668.0,95667.0,0.3103664]
[1734923929912,0.0061865,95668.0,95667.0,0.3103664]
[1734923930115,0.0001865,95668.0,95667.0,0.3103664]
[1734923930316,0.0001865,95668.0,95667.0,0.4805044]
[1734923930959,0.0001865,95668.0,95667.0,0.5603664]
[1734923931374,0.0001865,95668.0,95667.0,0.7452954]
[1734923932313,0.0061865,95668.0,95667.0,0.7462954]
[1734923932537,0.0001865,95668.0,95667.0,0.7452954]
[1734923932872,0.0061865,95668.0,95667.0,0.7462954]
[1734923933278,0.005924,95668.0,95667.0,0.8462954]
[1734923933474,0.005924,95668.0,95667.0,0.4613664]
[1734923934074,0.005924,95668.0,95667.0,0.4713664]
[1734923935064,0.005924,95668.0,95667.0,0.6202234]
[1734923935318,0.005924,95668.0,95667.0,0.4713664]
[1734923935805,0.005924,95668.0,95667.0,0.370058]
[1734923936631,8.55e-05,95675.0,95673.0,0.209045]
[1734923936850,8.55e-05,95675.0,95668.0,0.209056]
[1734923937055,8.55e-05,95675.0,95670.0,0.209051]
[1734923937664,8.55e-05,95675.0,95670.0,0.418102]
[1734923938211,8.55e-05,95675.0,95671.0,0.00104512]
[1734923938406,8.55e-05,95675.0,95665.0,0.0421932]
[1734923938611,0.209045,95673.0,95665.0,0.00016105]
[1734923938813,0.209058,95668.0,95665.0,0.00016105]
[1734923939039,0.20906,95666.0,95665.0,0.00016105]
[1734923939448,0.20905,95671.0,95665.0,0.00016105]
[1734923939650,0.10235352,95670.0,95665.0,0.00016105]
[1734923940059,0.0829,95669.0,95665.0,0.00016105]
[1734923940273,0.0455,95666.0,95665.0,0.00416105]
[1734923940468,0.14785352,95666.0,95665.0,0.00416105]
[1734923940682,0.14785352,95666.0,95665.0,0.00016105]
[1734923941467,0.10235352,95666.0,95665.0,0.00016105]
[1734923941651,0.1013084,95666.0,95665.0,0.00016105]
[1734923943303,0.1023084,95666.0,95640.0,0.18895045]
[1734923943511,0.31167717,95665.0,95643.0,0.00016115]
[1734923943706,0.31167717,95665.0,95643.0,0.00068415]
[1734923944350,0.209076,95659.0,95643.0,0.20979215]
[1734923944547,0.3103704,95665.0,95643.0,0.20979215]
[1734923944749,0.209067,95663.0,95643.0,0.20979215]
[1734923944946,0.10261517,95662.0,95643.0,0.00068415]
[1734923945150,0.209086,95655.0,95643.0,0.00016115]
[1734923945355,0.00130686,95654.0,95643.0,0.00016115]
[1734923946409,0.00130686,95654.0,95643.0,0.00116115]
[1734923946614,0.00130686,95654.0,95643.0,0.00016115]
[1734923947226,0.00230686,95654.0,95643.0,0.00616115]
[1734923947532,0.209089,95653.0,95643.0,0.00616115]
[1734923947911,0.00130686,95652.0,95643.0,0.00616115]
[1734923948559,0.209093,95651.0,95643.0,0.00616115]
[1734923948755,0.1026153,95650.0,95643.0,0.00616115]
[1734923948986,0.209097,95649.0,95643.0,0.00616115]
[1734923949117,0.10261535,95648.0,95643.0,0.00616115]
[1734923949323,0.290802,95647.0,95643.0,0.00616115]
[1734923949606,0.10261539,95646.0,95643.0,0.00016115]
[1734923949735,0.209106,95645.0,95643.0,0.00016115]
[1734923949937,0.10261541,95644.0,95643.0,0.00716115]
[1734923950142,0.10261541,95644.0,95643.0,0.00016115]
[1734923950569,0.10261541,95644.0,95643.0,0.00816115]
[1734923950885,0.209075,95660.0,95643.0,0.00016115]
[1734923951086,0.1830084,95659.0,95644.0,0.209108]
[1734923951303,0.1843153,95659.0,95644.0,0.209108]
[1734923951430,0.1026153,95659.0,95650.0,0.209095]
[1734923951792,0.00130679,95658.0,95645.0,0.209106]
[1734923952012,0.20908,95657.0,95643.0,0.00016115]
[1734923952219,0.00130683,95656.0,95643.0,0.00016115]
[1734923952419,0.1013084,95655.0,95643.0,0.00016115]
[1734923952653,0.00130697,95654.0,95643.0,0.00016115]
[1734923952858,0.00130686,95653.0,95643.0,0.00016115]
[1734923953062,0.00130686,95654.0,95643.0,0.00016115]
[1734923953272,0.00130686,95654.0,95643.0,0.00116115]
[1734923953470,0.006,95660.0,95643.0,0.00116115]
[1734923953591,0.1013084,95659.0,95643.0,0.00116115]
[1734923953990,0.00130685,95658.0,95643.0,0.00016115]
[1734923954229,0.003,95655.0,95645.0,0.0001712]
[1734923954459,0.00130685,95654.0,95645.0,0.0001712]
[1734923954825,0.00130685,95656.0,95645.0,0.0001712]
[1734923955030,0.1013084,95655.0,95645.0,0.0001712]
[1734923955223,0.209099,95649.0,95645.0,0.0001712]
[1734923955427,0.17821539,95648.0,95645.0,0.0001712]
[1734923956540,0.1013084,95648.0,95645.0,0.0001712]
[1734923957905,0.21040899,95647.0,95645.0,0.0001712]
[1734923958062,0.1013084,95646.0,95645.0,0.0031712]
[1734923959443,0.1013084,95646.0,95645.0,0.0001712]
[1734923959774,0.1013084,95646.0,95645.0,0.0041712]
[1734923959974,0.1013084,95646.0,95645.0,0.0001712]
[1734923960379,0.1013084,95646.0,95645.0,0.0041712]
[1734923960578,0.10261538,95646.0,95645.0,0.0041712]
[1734923961591,0.0815,95645.0,95615.0,0.09059366]
[1734923961793,0.209139,95630.0,95629.0,0.00070806]
[1734923962091,0.3104474,95630.0,95629.0,0.00070806]
[1734923962666,0.3919474,95630.0,95629.0,0.00070806]
[1734923962842,0.5149474,95630.0,95629.0,0.00070806]
[1734923963045,0.55723535,95630.0,95629.0,0.00070806]
[1734923963260,0.209173,95615.0,95590.0,0.09059366]
[1734923963469,0.20922,95593.0,95590.0,0.07126994]
[1734923963672,0.209224,95591.0,95590.0,0.07126994]
[1734923963872,0.3105324,95591.0,95590.0,0.07143127]
[1734923964274,0.3105324,95591.0,95590.0,0.00016133]
[1734923964479,0.3876324,95591.0,95590.0,0.00016133]
[1734923965988,0.3966324,95591.0,95590.0,0.00116133]
[1734923966197,0.3966324,95591.0,95590.0,0.00016133]
[1734923966198,0.4106324,95591.0,95590.0,0.00016133]
[1734923966717,0.4126324,95591.0,95590.0,0.00016133]
[1734923966854,0.4106324,95591.0,95590.0,0.00016133]
[1734923967267,0.4106324,95591.0,95590.0,0.00116133]
[1734923967268,0.4176324,95591.0,95590.0,0.00116133]
[1734923967508,0.4106324,95591.0,95590.0,0.00016133]
[1734923967908,0.4196324,95591.0,95590.0,0.00116133]
[1734923969313,0.4106324,95591.0,95590.0,0.01016133]
[1734923969897,0.4166324,95591.0,95590.0,0.01116133]
[1734923970088,0.4106324,95591.0,95590.0,0.01016133]
[1734923970657,0.6106324,95591.0,95590.0,0.01016133]
[1734923970835,0.1,95589.0,95560.0,0.04260689]
[1734923971051,0.32561649,95589.0,95588.0,0.00033239]
[1734923971252,0.209314,95550.0,95549.0,0.000171]
[1734923971583,0.3106224,95550.0,95549.0,0.00033252]
[1734923972315,0.3336224,95550.0,95549.0,0.00033252]
[1734923974574,0.4336224,95550.0,95549.0,0.00033252]
[1734923974794,0.45472016,95550.0,95549.0,0.00033252]
[1734923975491,0.55472016,95550.0,95549.0,0.00033252]
[1734923975729,0.60402016,95550.0,95549.0,0.00033252]
[1734923975944,0.60402016,95550.0,95533.0,0.000171]
[1734923975945,0.2,95534.0,95533.0,0.000171]
[1734923976156,0.3243084,95534.0,95533.0,0.00033268]
[1734923976356,0.4064084,95534.0,95533.0,0.00033268]
[1734923976755,0.4064084,95534.0,95533.0,6.8e-07]
[1734923977358,0.4064084,95534.0,95504.0,0.0001712]
[1734923977359,0.373,95527.0,95504.0,0.0001712]
[1734923977600,0.5226084,95527.0,95526.0,0.00070759]
[1734923977801,0.5226084,95527.0,95504.0,0.0001712]
[1734923977802,0.223,95524.0,95523.0,5.9e-07]
[1734923977978,0.3243084,95524.0,95523.0,2.9e-07]
[1734923978156,0.2,95506.0,95504.0,0.0001712]
[1734923978382,0.1,95501.0,95500.0,0.02944339]
[1734923978587,0.3256176,95501.0,95500.0,0.029497]
[1734923978785,0.4048084,95501.0,95500.0,5.361e-05]
[1734923978983,0.5548084,95501.0,95500.0,5.361e-05]
[1734923979573,0.5548084,95501.0,95500.0,0.00022481]
[1734923980384,0.5638084,95501.0,95500.0,0.00022481]
[1734923980610,0.5548084,95501.0,95500.0,0.00022481]
[1734923981023,0.6098084,95501.0,95500.0,0.00022481]
[1734923981232,0.6008084,95501.0,95500.0,0.00022481]
[1734923981582,0.63064665,95501.0,95500.0,0.00022481]
[1734923981784,0.223,95495.0,95455.0,0.004192]
[1734923981990,0.1,95478.0,95429.0,0.0772]
[1734923982204,0.1243084,95471.0,95430.0,0.00052826]
[1734923982408,0.1256181,95471.0,95442.0,0.041926]
[1734923982656,0.1256181,95471.0,95430.0,0.00052826]
[1734923983105,0.1256181,95471.0,95448.0,0.04184188]
[1734923983762,0.1266181,95471.0,95448.0,0.04184188]
[1734923985912,0.1266181,95471.0,95441.0,0.041927]
[1734923986118,0.2266181,95471.0,95441.0,0.041927]
[1734923986311,0.3055084,95471.0,95442.0,0.04198249]
[1734923986612,0.3055084,95471.0,95429.0,0.0772]
[1734923986993,0.3055084,95471.0,95432.0,0.04193]
[1734923987395,0.4055084,95471.0,95429.0,0.0772]
[1734923987595,0.3045084,95471.0,95439.0,0.04225092]
[1734923987797,0.2243084,95471.0,95439.0,0.04225092]
[1734923987995,0.2283084,95471.0,95439.0,0.04225092]
[1734923988415,0.3283084,95471.0,95439.0,0.04225092]
[1734923989403,0.3243084,95471.0,95439.0,0.04225092]
[1734923989994,0.3313084,95471.0,95439.0,0.04225092]
[1734923990827,0.3243084,95471.0,95439.0,0.04225092]
[1734923991401,0.3273084,95471.0,95470.0,0.0051712]
[1734923991649,0.1043084,95471.0,95470.0,0.0051712]
[1734923992489,0.1013084,95471.0,95470.0,0.0051712]
[1734923992885,0.1093084,95471.0,95470.0,0.0051712]
[1734923993226,0.1243084,95471.0,95470.0,0.0051712]
[1734923993453,0.1263084,95471.0,95470.0,0.0051712]
[1734923993655,0.1243084,95471.0,95470.0,0.0051712]
[1734923994076,0.1263084,95471.0,95470.0,0.0051712]
[1734923994512,0.1243084,95471.0,95470.0,0.0051712]
[1734923995978,0.12561813,95471.0,95470.0,0.0051712]
[1734923996441,0.12661813,95471.0,95470.0,0.0051712]
[1734923996636,0.12561813,95471.0,95470.0,0.0051712]
[1734923997038,0.13161813,95471.0,95470.0,0.0051712]
[1734923997331,0.12561813,95471.0,95470.0,0.0051712]
[1734923997535,0.1303084,95471.0,95470.0,0.0051712]
[1734923998335,0.1073084,95471.0,95470.0,0.0051712]
[1734923999132,0.1243084,95471.0,95470.0,0.0051712]
[1734923999337,0.1303084,95471.0,95470.0,0.0051712]
[1734923999492,0.12561807,95471.0,95470.0,0.0051712]
[1734923999872,0.12761807,95471.0,95470.0,0.0051712]
[1734924000555,0.12561807,95471.0,95470.0,0.0051712]
[1734924000759,0.10861807,95471.0,95470.0,0.0051712]
[1734924001074,0.1073084,95471.0,95470.0,0.0883712]
[1734924002080,0.1013084,95471.0,95470.0,0.0883712]
[1734924002284,0.1073084,95471.0,95470.0,0.0883712]
[1734924002529,0.1073084,95471.0,95470.0,0.0051712]
[1734924002731,0.1013084,95471.0,95470.0,0.0051712]
[1734924003208,0.1243084,95471.0,95470.0,0.0051712]
[1734924003392,0.1243084,95471.0,95449.0,0.0015712]
[1734924003590,0.023,95469.0,95449.0,0.0015712]
[1734924003795,0.023,95467.0,95449.0,0.0015712]
[1734924003992,0.023,95469.0,95449.0,0.0015712]
[1734924003993,0.10261802,95466.0,95449.0,0.0015712]
[1734924004757,0.1013084,95466.0,95449.0,0.0015712]
[1734924004962,0.00130951,95465.0,95449.0,0.0015712]
[1734924005163,0.1013084,95464.0,95449.0,0.0015712]
[1734924005339,0.00130952,95463.0,95449.0,0.04337703]
[1734924005540,0.1013084,95462.0,95449.0,0.0015712]
[1734924005743,0.00130962,95461.0,95449.0,0.0015712]
[1734924005909,0.1013084,95460.0,95449.0,0.0015712]
[1734924006109,0.00130962,95459.0,95449.0,0.0015712]
[1734924006323,0.00130962,95459.0,95435.0,0.04217895]
[1734924006324,0.023,95457.0,95435.0,0.04217895]
[1734924006529,0.023,95453.0,95435.0,0.04217895]
[1734924006731,0.023,95444.0,95435.0,9.618e-05]
[1734924006979,0.10261834,95443.0,95435.0,9.618e-05]
[1734924007152,0.023,95440.0,95435.0,9.618e-05]
[1734924007354,0.023,95438.0,95435.0,9.618e-05]
[1734924007617,0.023,95436.0,95435.0,9.618e-05]
[1734924007952,0.12561842,95436.0,95435.0,9.618e-05]
[1734924008625,0.1013084,95436.0,95435.0,9.618e-05]
[1734924008867,0.1,95465.0,95436.0,0.0767]
[1734924009038,0.1,95462.0,95436.0,0.1217]
[1734924009432,0.006,95457.0,95436.0,0.1217]
[1734924009615,0.1013084,95452.0,95436.0,0.1217]
[1734924009817,0.00130978,95451.0,95436.0,0.1217]
[1734924010016,0.00130968,95465.0,95440.0,0.1899043]
[1734924010217,0.00130968,95465.0,95436.0,0.1217]
[1734924010218,0.1013084,95464.0,95436.0,0.1217]
[1734924010493,0.1013084,95461.0,95436.0,0.1217]
[1734924010719,0.00130976,95460.0,95436.0,0.1217]
[1734924010837,0.1013084,95459.0,95436.0,0.1217]
[1734924011056,0.023,95452.0,95435.0,0.03364517]
[1734924011283,0.023,95446.0,95435.0,9.618e-05]
[1734924011499,0.023,95444.0,95435.0,9.618e-05]
[1734924011702,0.10261831,95443.0,95435.0,9.618e-05]
[1734924011876,0.023,95442.0,95435.0,9.618e-05]